bitfinex/quotes_BTCUSD_20250615
["timestamp","ask_amount","ask_price","bid_price","bid_amount"]
[1749984220207,0.00496822,105220.0,105210.0,0.99538233]
[1749984220429,0.00496822,105220.0,105210.0,1.01316044]
[1749984220638,0.00496822,105220.0,105210.0,1.00649365]
[1749984220836,0.00496822,105220.0,105210.0,0.99538233]
[1749984221045,0.00496822,105220.0,105210.0,1.00649367]
[1749984221246,0.00496822,105220.0,105210.0,1.01316046]
[1749984221365,0.00496822,105220.0,105210.0,1.00649366]
[1749984221572,0.00496822,105220.0,105210.0,0.99538232]
[1749984221773,0.00496822,105220.0,105210.0,1.01316041]
[1749984221975,0.00496822,105220.0,105210.0,1.00649363]
[1749984222176,0.00496822,105220.0,105210.0,0.99538232]
[1749984222405,0.00496822,105220.0,105210.0,1.01316041]
[1749984222687,0.00496822,105220.0,105210.0,1.00649363]
[1749984222891,0.00496822,105220.0,105210.0,1.01316044]
[1749984223096,0.00496822,105220.0,105210.0,0.98871554]
[1749984223311,0.00496822,105220.0,105210.0,1.01316045]
[1749984223969,0.00496822,105220.0,105210.0,1.01316046]
[1749984224187,0.00496822,105220.0,105210.0,1.01316049]
[1749984224381,0.00496822,105220.0,105210.0,1.00649369]
[1749984224836,0.00496822,105220.0,105210.0,1.01316049]
[1749984225041,0.00496822,105220.0,105210.0,1.00649369]
[1749984225245,0.00496822,105220.0,105210.0,1.01316049]
[1749984225452,0.00496822,105220.0,105210.0,1.00649369]
[1749984225659,0.00496822,105220.0,105210.0,1.01316044]
[1749984226076,0.00496822,105220.0,105210.0,1.01316043]
[1749984226283,0.00496822,105220.0,105210.0,0.94245652]
[1749984226484,0.00496822,105220.0,105210.0,0.94912332]
[1749984226688,0.00496822,105220.0,105210.0,0.94912334]
[1749984226893,0.00496822,105220.0,105210.0,0.94245654]
[1749984227518,0.00496822,105220.0,105210.0,0.93134519]
[1749984227725,0.00496822,105220.0,105210.0,0.94912334]
[1749984228131,0.00496822,105220.0,105210.0,0.93134519]
[1749984228336,0.00496822,105220.0,105210.0,0.94912334]
[1749984229199,0.00496822,105220.0,105210.0,0.94912333]
[1749984229807,0.00496822,105220.0,105210.0,0.94912334]
[1749984230213,0.00496822,105220.0,105210.0,0.92467839]
[1749984230418,0.00496822,105220.0,105210.0,0.94912336]
[1749984230829,0.00496822,105220.0,105210.0,0.94912334]
[1749984231390,0.00496822,105220.0,105210.0,0.93134519]
[1749984231792,0.00496822,105220.0,105210.0,0.94912334]
[1749984232134,0.00496822,105220.0,105210.0,0.93134519]
[1749984232367,0.00496822,105220.0,105210.0,0.92467839]
[1749984232761,0.00496822,105220.0,105210.0,0.94912334]
[1749984232960,0.00496822,105220.0,105210.0,0.94245654]
[1749984233163,0.00496822,105220.0,105210.0,0.94912335]
[1749984233351,0.00496822,105220.0,105210.0,0.9313452]
[1749984233488,0.00496822,105220.0,105210.0,0.94245656]
[1749984233851,0.00496822,105220.0,105210.0,0.9313452]
[1749984234052,0.00496822,105220.0,105210.0,0.94912337]
[1749984234199,0.00496822,105220.0,105210.0,0.9313452]
[1749984234596,0.00496822,105220.0,105210.0,0.93134521]
[1749984234791,0.00496822,105220.0,105210.0,0.94245657]
[1749984235054,0.00496822,105220.0,105210.0,0.94912338]
[1749984235254,0.00496822,105220.0,105210.0,0.93134519]
[1749984235455,0.00496822,105220.0,105210.0,0.94245656]
[1749984235665,0.00496822,105220.0,105210.0,0.94912248]
[1749984235931,0.00496822,105220.0,105210.0,0.94245593]
[1749984236186,0.00496822,105220.0,105210.0,0.93134495]
[1749984236537,0.00496822,105220.0,105210.0,0.92467839]
[1749984236769,0.00496822,105220.0,105210.0,0.94245591]
[1749984237021,0.00496822,105220.0,105210.0,0.93134495]
[1749984237427,0.00496822,105220.0,105210.0,0.94912244]
[1749984237429,0.00496822,105220.0,105210.0,0.93134495]
[1749984237659,0.00496822,105220.0,105210.0,0.93134496]
[1749984237911,0.00496822,105220.0,105210.0,0.94912249]
[1749984238180,0.00496822,105220.0,105210.0,0.93134496]
[1749984238438,0.00496822,105220.0,105210.0,0.94912248]
[1749984238704,0.00496822,105220.0,105210.0,0.92467839]
[1749984238956,0.00496822,105220.0,105210.0,1.02749417]
[1749984239231,0.00496822,105220.0,105210.0,1.02749416]
[1749984240055,0.00496822,105220.0,105210.0,1.0386054]
[1749984240323,0.00496822,105220.0,105210.0,0.92467839]
[1749984240587,0.00496822,105220.0,105210.0,0.94912325]
[1749984240848,0.00496822,105220.0,105210.0,0.9491233]
[1749984241091,0.00496822,105220.0,105210.0,0.93134519]
[1749984241553,0.00496822,105220.0,105210.0,0.9491233]
[1749984241781,0.00496822,105220.0,105210.0,0.93134513]
[1749984242010,0.00496822,105220.0,105210.0,0.94245612]
[1749984242238,0.00496822,105220.0,105210.0,0.94912268]
[1749984242460,0.00496822,105220.0,105210.0,0.93134501]
[1749984242714,0.02501663,105240.0,105230.0,0.21856775]
[1749984242940,0.02506411,105240.0,105230.0,0.50378746]
[1749984243183,0.02506411,105240.0,105230.0,0.50378725]
[1749984243184,0.03003168,105240.0,105230.0,0.50378725]
[1749984243410,0.03003168,105240.0,105230.0,0.50378723]
[1749984243655,0.03003168,105240.0,105230.0,0.52154356]
[1749984243865,0.03003168,105240.0,105230.0,0.56098349]
[1749984244113,0.03003168,105240.0,105230.0,0.54322728]
[1749984244336,0.03003168,105240.0,105230.0,0.54322727]
[1749984244555,0.03003168,105240.0,105230.0,0.56098388]
[1749984244777,0.05473295,105240.0,105230.0,0.56098244]
[1749984245055,0.05473295,105240.0,105230.0,0.56098234]
[1749984245276,0.05573295,105240.0,105230.0,0.54322712]
[1749984245489,0.05673295,105240.0,105230.0,0.56098327]
[1749984245705,0.07573585,105240.0,105230.0,0.56098289]
[1749984245922,0.06623431,105240.0,105230.0,0.53656857]
[1749984246141,0.06623431,105240.0,105230.0,0.55432498]
[1749984246357,0.06623431,105240.0,105230.0,0.55432505]
[1749984246574,0.06623431,105240.0,105230.0,0.54322725]
[1749984246779,0.06623431,105240.0,105230.0,0.54322714]
[1749984246984,0.07573576,105240.0,105230.0,0.55432476]
[1749984247202,0.08523739,105240.0,105230.0,0.36100465]
[1749984247430,0.06623431,105240.0,105230.0,0.54322708]
[1749984247645,0.07573585,105240.0,105230.0,0.5498856]
[1749984247854,0.07573585,105240.0,105230.0,0.54322708]
[1749984248317,0.07573585,105240.0,105230.0,0.56764162]
[1749984248534,0.07573585,105240.0,105230.0,0.56764091]
[1749984248781,0.07573585,105240.0,105230.0,0.56764228]
[1749984248995,0.06623431,105240.0,105230.0,0.54988564]
[1749984249219,0.06623431,105240.0,105230.0,0.54988566]
[1749984249444,0.07573585,105240.0,105230.0,0.56764189]
[1749984249661,0.07573585,105240.0,105230.0,0.56764196]
[1749984249878,0.06623431,105240.0,105230.0,0.54322708]
[1749984250098,0.07573585,105240.0,105230.0,0.56764202]
[1749984250533,0.07573585,105240.0,105230.0,0.56764143]
[1749984250753,0.07573585,105240.0,105230.0,0.56764179]
[1749984250971,0.08523757,105240.0,105230.0,0.56765709]
[1749984251216,0.07573576,105240.0,105230.0,0.56765712]
[1749984251514,0.08523739,105240.0,105230.0,0.5676569]
[1749984251724,0.07573576,105240.0,105230.0,0.56765534]
[1749984251933,0.0852373,105240.0,105230.0,0.54322708]
[1749984252191,0.0852373,105240.0,105230.0,0.56765503]
[1749984252434,0.0852373,105240.0,105230.0,0.54988926]
[1749984252668,0.07573576,105240.0,105230.0,0.54322708]
[1749984252887,0.07573576,105240.0,105230.0,0.56765548]
[1749984253121,0.07573576,105240.0,105230.0,0.5676561]
[1749984253349,0.07573576,105240.0,105230.0,0.56765637]
[1749984253596,0.08523739,105240.0,105230.0,0.54988961]
[1749984253824,0.08523739,105240.0,105230.0,0.56765648]
[1749984254082,0.08523739,105240.0,105230.0,0.56765645]
[1749984254306,0.07573576,105240.0,105230.0,0.54322708]
[1749984254534,0.05673295,105240.0,105230.0,0.56765637]
[1749984254766,0.05673295,105240.0,105230.0,0.56765625]
[1749984255009,0.05673295,105240.0,105230.0,0.56099372]
[1749984255235,0.05673295,105240.0,105230.0,0.56765597]
[1749984255456,0.04723168,105240.0,105230.0,0.56765652]
[1749984255677,0.04723168,105240.0,105230.0,0.56765634]
[1749984255884,0.04723168,105240.0,105230.0,0.54322708]
[1749984256109,0.04723168,105240.0,105230.0,0.56765622]
[1749984256336,0.04723168,105240.0,105230.0,0.56099338]
[1749984256570,0.04723168,105240.0,105230.0,0.56765574]
[1749984257038,0.04723168,105240.0,105230.0,0.5676555]
[1749984257272,0.05673304,105240.0,105230.0,0.56765622]
[1749984257494,0.05673304,105240.0,105230.0,0.56765634]
[1749984257698,0.04723168,105240.0,105230.0,0.56099357]
[1749984257938,0.05673295,105240.0,105230.0,0.54988943]
[1749984258120,0.05673295,105240.0,105230.0,0.56099327]
[1749984258355,0.05673295,105240.0,105230.0,0.54322708]
[1749984258788,0.05673295,105240.0,105230.0,0.56765515]
[1749984258993,0.05673295,105240.0,105230.0,0.56765566]
[1749984259259,0.05673295,105240.0,105230.0,0.56099346]
[1749984259466,0.05673295,105240.0,105230.0,0.56765585]
[1749984259672,0.05673295,105240.0,105230.0,0.56765556]
[1749984259876,0.05673295,105240.0,105230.0,0.54988944]
[1749984260083,0.05673295,105240.0,105230.0,0.54988945]
[1749984260287,0.06623449,105240.0,105230.0,0.56765622]
[1749984260502,0.06623449,105240.0,105230.0,0.54322708]
[1749984260726,0.06623449,105240.0,105230.0,0.56765647]
[1749984261157,0.07573612,105240.0,105230.0,0.54322708]
[1749984261367,0.07573612,105240.0,105230.0,0.56099391]
[1749984261784,0.07573612,105240.0,105230.0,0.56765612]
[1749984261992,0.08523802,105240.0,105230.0,0.54988955]
[1749984262199,0.08523802,105240.0,105230.0,0.56765621]
[1749984262402,0.08523802,105240.0,105230.0,0.57715857]
[1749984262610,0.08523802,105240.0,105230.0,0.54871951]
[1749984262822,0.08523802,105240.0,105230.0,0.54872112]
[1749984263032,0.08523802,105240.0,105230.0,0.54205812]
[1749984263258,0.08523802,105240.0,105230.0,0.5309533]
[1749984263461,0.08523802,105240.0,105230.0,0.57715954]
[1749984263665,0.09474002,105240.0,105230.0,0.5593923]
[1749984263869,0.08523802,105240.0,105230.0,0.54872065]
[1749984264077,0.08523802,105240.0,105230.0,0.54205777]
[1749984264257,0.08523802,105240.0,105230.0,0.52429047]
[1749984264521,0.07573612,105240.0,105230.0,0.55939225]
[1749984264724,0.07573612,105240.0,105230.0,0.57715943]
[1749984264951,0.07573612,105240.0,105230.0,0.55939223]
[1749984265162,0.07573612,105240.0,105230.0,0.57715904]
[1749984265364,0.07573612,105240.0,105230.0,0.57715901]
[1749984265571,0.07573612,105240.0,105230.0,0.55272953]
[1749984265783,0.08523793,105240.0,105230.0,0.55939222]
[1749984265994,0.06623449,105240.0,105230.0,0.57049676]
[1749984266204,0.06623449,105240.0,105230.0,0.57049641]
[1749984266418,0.06623449,105240.0,105230.0,0.57715898]
[1749984266626,0.06623449,105240.0,105230.0,0.37717643]
[1749984266885,0.06623449,105240.0,105230.0,0.57049625]
[1749984267090,0.06623449,105240.0,105230.0,0.57715892]
[1749984267296,0.06623449,105240.0,105230.0,0.55939221]
[1749984267501,0.06623449,105240.0,105230.0,0.55272953]
[1749984267709,0.06623449,105240.0,105230.0,0.57715938]
[1749984267911,0.07573621,105240.0,105230.0,0.57715991]
[1749984268127,0.07573621,105240.0,105230.0,0.57049713]
[1749984268330,0.07573621,105240.0,105230.0,0.57715982]
[1749984268535,0.07573621,105240.0,105230.0,0.57715981]
[1749984268743,0.07573621,105240.0,105230.0,0.57049706]
[1749984268948,0.07573621,105240.0,105230.0,0.57715972]
[1749984269155,0.07573621,105240.0,105230.0,0.5771597]
[1749984269362,0.07573621,105240.0,105230.0,0.57715938]
[1749984269582,0.07573621,105240.0,105230.0,0.57715974]
[1749984269786,0.06623449,105240.0,105230.0,0.57715998]
[1749984269990,0.06623449,105240.0,105230.0,0.57715997]
[1749984270199,0.07573621,105240.0,105230.0,0.57715994]
[1749984270409,0.07573621,105240.0,105230.0,0.57715998]
[1749984270616,0.07573621,105240.0,105230.0,0.57049713]
[1749984270838,0.07573621,105240.0,105230.0,0.57715998]
[1749984271038,0.06623449,105240.0,105230.0,0.57715996]
[1749984271246,0.07573612,105240.0,105230.0,0.57049688]
[1749984271449,0.07573612,105240.0,105230.0,0.57715988]
[1749984271857,0.07573612,105240.0,105230.0,0.55272953]
[1749984272063,0.07573612,105240.0,105230.0,0.57049716]
[1749984272274,0.07573612,105240.0,105230.0,0.57716001]
[1749984272482,0.07573612,105240.0,105230.0,0.55939241]
[1749984272720,0.07573612,105240.0,105230.0,0.55272953]
[1749984272976,0.07573612,105240.0,105230.0,0.57715605]
[1749984273259,0.02623295,105240.0,105230.0,0.55939129]
[1749984273547,0.0357344,105240.0,105230.0,0.55939095]
[1749984273834,0.0357344,105240.0,105230.0,0.5771553]
[1749984274122,0.0357344,105240.0,105230.0,0.57049337]
[1749984274410,0.0357344,105240.0,105230.0,0.55939092]
[1749984274740,0.0357344,105240.0,105230.0,0.57715463]
[1749984274948,0.0357344,105240.0,105230.0,0.57715462]
[1749984275154,0.0357344,105240.0,105230.0,0.57049346]
[1749984275362,0.0357344,105240.0,105230.0,0.57715544]
[1749984275568,0.0357344,105240.0,105230.0,0.57049386]
[1749984275789,0.0357344,105240.0,105230.0,0.57715534]
[1749984276201,0.0357344,105240.0,105230.0,0.55272953]
[1749984276405,0.0357344,105240.0,105230.0,0.5771548]
[1749984276615,0.02623304,105240.0,105230.0,0.57715455]
[1749984276823,0.02623304,105240.0,105230.0,0.60835449]
[1749984277054,0.02623295,105240.0,105230.0,0.60835485]
[1749984277261,0.02623295,105240.0,105230.0,0.59059093]
[1749984277464,0.02623295,105240.0,105230.0,0.6083549]
[1749984277884,0.02623295,105240.0,105230.0,0.60169344]
[1749984278088,0.02623295,105240.0,105230.0,0.57529099]
[1749984278526,0.02623295,105240.0,105230.0,0.59306888]
[1749984278729,0.02623295,105240.0,105230.0,0.56862953]
[1749984278929,0.02623295,105240.0,105230.0,0.57529487]
[1749984279182,0.02623295,105240.0,105230.0,0.59306913]
[1749984279607,0.0357344,105240.0,105230.0,0.54685581]
[1749984279855,0.0357344,105240.0,105230.0,0.55796456]
[1749984280065,0.02623295,105240.0,105230.0,0.56462981]
[1749984280275,0.02623295,105240.0,105230.0,0.54685575]
[1749984280482,0.02623295,105240.0,105230.0,0.56462973]
[1749984280687,0.03573449,105240.0,105230.0,0.54872984]
[1749984280906,0.0357344,105240.0,105230.0,0.53095582]
[1749984281112,0.0357344,105240.0,105230.0,0.54206484]
[1749984281318,0.0357344,105240.0,105230.0,0.54873042]
[1749984281523,0.0357344,105240.0,105230.0,0.54206488]
[1749984281740,0.0357344,105240.0,105230.0,0.54873016]
[1749984281947,0.0557344,105240.0,105230.0,0.54872958]
[1749984282168,0.0557344,105240.0,105230.0,0.54872939]
[1749984282376,0.0557344,105240.0,105230.0,0.54872955]
[1749984282555,0.0557344,105240.0,105230.0,0.53095551]
[1749984282715,0.0557344,105240.0,105230.0,0.54872895]
[1749984282912,0.0557344,105240.0,105230.0,0.54872915]
[1749984283114,0.0557344,105240.0,105230.0,0.54873]
[1749984283318,0.0557344,105240.0,105230.0,0.52429047]
[1749984283543,0.0557344,105240.0,105230.0,0.5487301]
[1749984283746,0.0557344,105240.0,105230.0,0.54206475]
[1749984283940,0.0557344,105240.0,105230.0,0.5487265]
[1749984284142,0.0557344,105240.0,105230.0,0.54872651]
[1749984284351,0.0557344,105240.0,105230.0,0.54872653]
[1749984284763,0.0557344,105240.0,105230.0,0.54206211]
[1749984285149,0.0557344,105240.0,105230.0,0.54872654]
[1749984285377,0.05573431,105240.0,105230.0,0.54872668]
[1749984285636,0.05573431,105240.0,105230.0,0.54872662]
[1749984285843,0.05573431,105240.0,105230.0,0.53095479]
[1749984286087,0.05573431,105240.0,105230.0,0.53095482]
[1749984286300,0.05573431,105240.0,105230.0,0.57715749]
[1749984286515,0.05573431,105240.0,105230.0,0.55938576]
[1749984286759,0.05573431,105240.0,105230.0,0.57715754]
[1749984286969,0.05573431,105240.0,105230.0,0.55938585]
[1749984287180,0.05573431,105240.0,105230.0,0.57715772]
[1749984287386,0.06523576,105240.0,105230.0,0.55272142]
[1749984287594,0.06523576,105240.0,105230.0,0.57049332]
[1749984287809,0.06523576,105240.0,105230.0,0.55938581]
[1749984288021,0.06523576,105240.0,105230.0,0.57715786]
[1749984288228,0.06523576,105240.0,105230.0,0.55938591]
[1749984288435,0.06523576,105240.0,105230.0,0.57049342]
[1749984288637,0.06523576,105240.0,105230.0,0.57715796]
[1749984288845,0.06523576,105240.0,105230.0,0.54206242]
[1749984289059,0.06523576,105240.0,105230.0,0.57716024]
[1749984289270,0.06523576,105240.0,105230.0,0.57716018]
[1749984289449,0.05573431,105240.0,105230.0,0.57716]
[1749984289662,0.04623295,105240.0,105230.0,0.55796235]
[1749984289883,0.04623295,105240.0,105230.0,0.60209557]
[1749984290102,0.04623295,105240.0,105230.0,0.59098746]
[1749984290296,0.04623295,105240.0,105230.0,0.60875768]
[1749984290508,0.04623295,105240.0,105230.0,0.60209386]
[1749984290707,0.04623295,105240.0,105230.0,0.6087577]
[1749984290919,0.04623295,105240.0,105230.0,0.60875789]
[1749984291130,0.04623295,105240.0,105230.0,0.6087581]
[1749984291559,0.04623295,105240.0,105230.0,0.58432361]
[1749984291776,0.04623295,105240.0,105230.0,0.60875779]
[1749984291994,0.04623295,105240.0,105230.0,0.60875928]
[1749984292205,0.04623295,105240.0,105230.0,0.60157501]
[1749984292410,0.04623295,105240.0,105230.0,0.60823928]
[1749984292623,0.04623295,105240.0,105230.0,0.60157501]
[1749984292821,0.04623295,105240.0,105230.0,0.60823919]
[1749984293028,0.05573431,105240.0,105230.0,0.57472787]
[1749984293231,0.07473748,105240.0,105230.0,0.56993459]
[1749984293432,0.07473748,105240.0,105230.0,0.576598]
[1749984293870,0.06523576,105240.0,105230.0,0.57659777]
[1749984294110,0.07473748,105240.0,105230.0,0.55882747]
[1749984294310,0.07473748,105240.0,105230.0,0.57659777]
[1749984294510,0.07473748,105240.0,105230.0,0.55216361]
[1749984294735,0.07473748,105240.0,105230.0,0.55882769]
[1749984294945,0.07473748,105240.0,105230.0,0.57659856]
[1749984295164,0.07473748,105240.0,105230.0,0.55216361]
[1749984295405,0.07473748,105240.0,105230.0,0.57659854]
[1749984295866,0.07473748,105240.0,105230.0,0.55882768]
[1749984296078,0.07473748,105240.0,105230.0,0.5699373]
[1749984296271,0.07473748,105240.0,105230.0,0.57660245]
[1749984296504,0.07473748,105240.0,105230.0,0.56993753]
[1749984296505,0.07473739,105240.0,105230.0,0.56993753]
[1749984296930,0.07473739,105240.0,105230.0,0.57660239]
[1749984297179,0.07473739,105240.0,105230.0,0.56993726]
[1749984297401,0.07473739,105240.0,105230.0,0.55882872]
[1749984297806,0.0747373,105240.0,105230.0,0.55882872]
[1749984298014,0.0747373,105240.0,105230.0,0.55216361]
[1749984298216,0.0747373,105240.0,105230.0,0.57660253]
[1749984298431,0.0747373,105240.0,105230.0,0.55882881]
[1749984298631,0.0747373,105240.0,105230.0,0.55216361]
[1749984298845,0.0747373,105240.0,105230.0,0.56993796]
[1749984299050,0.0747373,105240.0,105230.0,0.55216361]
[1749984299460,0.0747373,105240.0,105230.0,0.56993778]
[1749984299666,0.0747373,105240.0,105230.0,0.55216361]
[1749984299883,0.0747373,105240.0,105230.0,0.58396361]
[1749984300091,0.05573431,105240.0,105230.0,0.59062916]
[1749984300280,0.05573431,105240.0,105230.0,0.60840426]
[1749984300517,0.05573431,105240.0,105230.0,0.60173842]
[1749984300728,0.04623295,105240.0,105230.0,0.60173842]
[1749984300941,0.04623304,105240.0,105230.0,0.60840397]
[1749984301196,0.04623304,105240.0,105230.0,0.59062914]
[1749984301413,0.04623295,105240.0,105230.0,0.60840404]
[1749984301617,0.04623295,105240.0,105230.0,0.60840491]
[1749984301846,0.05573431,105240.0,105230.0,0.59062942]
[1749984302080,0.04623295,105240.0,105230.0,0.59062929]
[1749984302351,0.04623295,105240.0,105230.0,0.60840444]
[1749984302581,0.03673168,105240.0,105230.0,0.60840445]
[1749984302812,0.04623304,105240.0,105230.0,0.60840437]
[1749984303064,0.04623304,105240.0,105230.0,0.60173907]
[1749984303315,0.04623304,105240.0,105230.0,0.60173827]
[1749984303542,0.03673168,105240.0,105230.0,0.60840342]
[1749984303760,0.03673168,105240.0,105230.0,0.6084029]
[1749984303978,0.03673168,105240.0,105230.0,0.60840303]
[1749984304190,0.03673168,105240.0,105230.0,0.60840297]
[1749984304406,0.03673168,105240.0,105230.0,0.60840272]
[1749984304652,0.03673168,105240.0,105230.0,0.60840198]
[1749984304972,0.03673168,105240.0,105230.0,0.60840188]
[1749984305072,0.03673168,105240.0,105230.0,0.59062863]
[1749984305278,0.03673168,105240.0,105230.0,0.60840192]
[1749984305496,0.03673168,105240.0,105230.0,0.60840219]
[1749984305703,0.03673168,105240.0,105230.0,0.58396361]
[1749984306123,0.03673168,105240.0,105230.0,0.60840238]
[1749984306337,0.03673168,105240.0,105230.0,0.60840219]
[1749984306545,0.03673168,105240.0,105230.0,0.60173693]
[1749984306754,0.03673168,105240.0,105230.0,0.60173705]
[1749984306971,0.04623295,105240.0,105230.0,0.60173699]
[1749984307177,0.0557344,105240.0,105230.0,0.5750286]
[1749984307396,0.0557344,105240.0,105230.0,0.59280212]
[1749984307620,0.0557344,105240.0,105230.0,0.57502873]
[1749984307833,0.0557344,105240.0,105230.0,0.57502882]
[1749984308044,0.0557344,105240.0,105230.0,0.59280282]
[1749984308257,0.0557344,105240.0,105230.0,0.57502883]
[1749984308483,0.0557344,105240.0,105230.0,0.59280247]
[1749984308725,0.0557344,105240.0,105230.0,0.56836361]
[1749984308945,0.07473775,105240.0,105230.0,0.57660251]
[1749984309153,0.09093766,105240.0,105230.0,0.56993736]
[1749984309364,0.07473766,105240.0,105230.0,0.56993736]
[1749984309574,0.07473766,105240.0,105230.0,0.57660394]
[1749984309795,0.07473766,105240.0,105230.0,0.5699384]
[1749984310027,0.08423956,105240.0,105230.0,0.55216361]
[1749984310233,0.08423956,105240.0,105230.0,0.57660317]
[1749984310434,0.08423956,105240.0,105230.0,0.56993784]
[1749984310643,0.08423956,105240.0,105230.0,0.55882894]
[1749984310844,0.08423956,105240.0,105230.0,0.57660305]
[1749984311055,0.07473766,105240.0,105230.0,0.57660266]
[1749984311257,0.08423947,105240.0,105230.0,0.57660246]
[1749984311472,0.08423947,105240.0,105230.0,0.56993751]
[1749984311690,0.08423947,105240.0,105230.0,0.5766034]
[1749984311894,0.08423947,105240.0,105230.0,0.55216361]
[1749984312109,0.0842401,105240.0,105230.0,0.55216361]
[1749984312324,0.0842401,105240.0,105230.0,0.56993802]
[1749984312562,0.0842401,105240.0,105230.0,0.57660382]
[1749984312786,0.0842401,105240.0,105230.0,0.57660354]
[1749984313007,0.0842401,105240.0,105230.0,0.56993807]
[1749984313215,0.0842401,105240.0,105230.0,0.57660349]
[1749984313424,0.0842401,105240.0,105230.0,0.57660382]
[1749984313624,0.0842401,105240.0,105230.0,0.56993851]
[1749984313852,0.0842401,105240.0,105230.0,0.5766046]
[1749984314052,0.0842401,105240.0,105230.0,0.56993877]
[1749984314475,0.0842401,105240.0,105230.0,0.57660445]
[1749984314678,0.0842401,105240.0,105230.0,0.56993877]
[1749984314893,0.0842401,105240.0,105230.0,0.57660441]
[1749984315092,0.0842401,105240.0,105230.0,0.57660429]
[1749984315533,0.0842401,105240.0,105230.0,0.57660413]
[1749984315795,0.0842401,105240.0,105230.0,0.57660414]
[1749984316199,0.0842401,105240.0,105230.0,0.56993854]
[1749984316424,0.0747382,105240.0,105230.0,0.57660414]
[1749984316836,0.0747382,105240.0,105230.0,0.57660408]
[1749984317057,0.0747382,105240.0,105230.0,0.57660405]
[1749984317204,0.0842401,105240.0,105230.0,0.57660424]
[1749984317403,0.0842401,105240.0,105230.0,0.57660484]
[1749984317607,0.0842401,105240.0,105230.0,0.55216361]
[1749984318043,0.0842401,105240.0,105230.0,0.57660518]
[1749984318395,0.0842401,105240.0,105230.0,0.5766057]
[1749984318607,0.0842401,105240.0,105230.0,0.56993968]
[1749984318857,0.0842401,105240.0,105230.0,0.57660577]
[1749984319048,0.0842401,105240.0,105230.0,0.57660585]
[1749984319252,0.0842401,105240.0,105230.0,0.56993979]
[1749984319431,0.0842401,105240.0,105230.0,0.57660584]
[1749984319653,0.0842401,105240.0,105230.0,0.5766058]
[1749984319811,0.0842401,105240.0,105230.0,0.55882966]
[1749984320019,0.0842401,105240.0,105230.0,0.55882953]
[1749984320275,0.0842401,105240.0,105230.0,0.57660534]
[1749984320470,0.0842401,105240.0,105230.0,0.57660567]
[1749984320876,0.0842401,105240.0,105230.0,0.57660653]
[1749984321030,0.0842401,105240.0,105230.0,0.55882988]
[1749984321234,0.0842401,105240.0,105230.0,0.56994023]
[1749984321435,0.0842401,105240.0,105230.0,0.57660646]
[1749984321644,0.0842401,105240.0,105230.0,0.56994037]
[1749984321863,0.0842401,105240.0,105230.0,0.55882967]
[1749984322066,0.0842401,105240.0,105230.0,0.57660584]
[1749984322317,0.0842401,105240.0,105230.0,0.56993982]
[1749984322523,0.0842401,105240.0,105230.0,0.56993983]
[1749984322730,0.0842401,105240.0,105230.0,0.55882969]
[1749984322936,0.0842401,105240.0,105230.0,0.57660592]
[1749984323144,0.0842401,105240.0,105230.0,0.55216361]
[1749984323349,0.0842401,105240.0,105230.0,0.56994047]
[1749984323556,0.0842401,105240.0,105230.0,0.56994057]
[1749984323754,0.0842401,105240.0,105230.0,0.55882999]
[1749984323982,0.0842401,105240.0,105230.0,0.56994063]
[1749984324204,0.0842401,105240.0,105230.0,0.55882993]
[1749984324419,0.0842401,105240.0,105230.0,0.56994048]
[1749984324562,0.0842401,105240.0,105230.0,0.56994049]
[1749984324761,0.0842401,105240.0,105230.0,0.5303968]
[1749984325003,0.0842401,105240.0,105230.0,0.53039694]
[1749984325446,0.0842401,105240.0,105230.0,0.54150773]
[1749984325581,0.0842401,105240.0,105230.0,0.52373047]
[1749984325922,0.0842401,105240.0,105230.0,0.53039694]
[1749984326122,0.0842401,105240.0,105230.0,0.54150759]
[1749984326370,0.0842401,105240.0,105230.0,0.54817388]
[1749984326596,0.0842401,105240.0,105230.0,0.57660673]
[1749984326812,0.0842401,105240.0,105230.0,0.56994048]
[1749984327148,0.0842401,105240.0,105230.0,0.53039683]
[1749984327559,0.0842401,105240.0,105230.0,0.53039678]
[1749984327775,0.0842401,105240.0,105230.0,0.57660664]
[1749984328001,0.0842401,105240.0,105230.0,0.57660653]
[1749984328202,0.0842401,105240.0,105230.0,0.55882986]
[1749984328407,0.0842401,105240.0,105230.0,0.5303968]
[1749984328592,0.0842401,105240.0,105230.0,0.54150737]
[1749984328789,0.0747382,105240.0,105230.0,0.54817436]
[1749984328990,0.0747382,105240.0,105230.0,0.54817675]
[1749984329216,0.0747382,105240.0,105230.0,0.54817691]
[1749984329420,0.0747382,105240.0,105230.0,0.55883084]
[1749984329585,0.0747382,105240.0,105230.0,0.57661103]
[1749984329790,0.0747382,105240.0,105230.0,0.57661092]
[1749984330000,0.06523639,105240.0,105230.0,0.57661034]
[1749984330201,0.0747382,105240.0,105230.0,0.57661016]
[1749984330408,0.0747382,105240.0,105230.0,0.56994292]
[1749984330624,0.0747382,105240.0,105230.0,0.55216361]
[1749984330836,0.06523639,105240.0,105230.0,0.55216361]
[1749984331038,0.06523639,105240.0,105230.0,0.57661097]
[1749984331254,0.06523639,105240.0,105230.0,0.57661088]
[1749984331461,0.06523639,105240.0,105230.0,0.57661099]
[1749984331673,0.06523639,105240.0,105230.0,0.57661094]
[1749984331896,0.06523639,105240.0,105230.0,0.59181094]
[1749984332127,0.07473829,105240.0,105230.0,0.59181104]
[1749984332333,0.07473829,105240.0,105230.0,0.58514354]
[1749984332534,0.06523639,105240.0,105230.0,0.58514356]
[1749984332735,0.06523639,105240.0,105230.0,0.5918108]
[1749984332937,0.06523639,105240.0,105230.0,0.5918109]
[1749984333146,0.06523639,105240.0,105230.0,0.57403113]
[1749984333351,0.06523639,105240.0,105230.0,0.54559801]
[1749984333555,0.06523639,105240.0,105230.0,0.59181124]
[1749984333754,0.06523639,105240.0,105230.0,0.56736361]
[1749984333964,0.06523639,105240.0,105230.0,0.58514331]
[1749984334172,0.06523639,105240.0,105230.0,0.56736361]
[1749984334380,0.06523639,105240.0,105230.0,0.58514327]
[1749984334585,0.0652363,105240.0,105230.0,0.5918108]
[1749984334787,0.0652363,105240.0,105230.0,0.57403103]
[1749984335071,0.07473802,105240.0,105230.0,0.58514342]
[1749984335281,0.07473802,105240.0,105230.0,0.57403102]
[1749984335526,0.07473802,105240.0,105230.0,0.59181079]
[1749984335729,0.07473802,105240.0,105230.0,0.57403103]
[1749984335930,0.07473802,105240.0,105230.0,0.59181093]
[1749984336069,0.07473802,105240.0,105230.0,0.57403107]
[1749984336274,0.07473802,105240.0,105230.0,0.5918101]
[1749984336453,0.07473802,105240.0,105230.0,0.57403109]
[1749984336652,0.07473802,105240.0,105230.0,0.57403108]
[1749984336851,0.07473802,105240.0,105230.0,0.591811]
[1749984337052,0.07473802,105240.0,105230.0,0.5918102]
[1749984337507,0.07473802,105240.0,105230.0,0.59181023]
[1749984337711,0.07473802,105240.0,105230.0,0.57403103]
[1749984337908,0.07473802,105240.0,105230.0,0.57403097]
[1749984338110,0.07473802,105240.0,105230.0,0.59181061]
[1749984338365,0.0652363,105240.0,105230.0,0.58514323]
[1749984338569,0.0652363,105240.0,105230.0,0.59181058]
[1749984338854,0.0652363,105240.0,105230.0,0.57403095]
[1749984339149,0.0652363,105240.0,105230.0,0.59181056]